fUST/lending_fUST_20240925
["ID","MTS","AMOUNT","RATE_DAILY","PERIOD"]
[339105855,1727250646954,-189.263808,0.00016438,2]
[339105856,1727250646965,-500.0,0.00016438,2]
[339105857,1727250646974,-500.0,0.00016438,2]
[339105858,1727250646986,-305.787318,0.00016438,2]
[339105859,1727250646996,-699.05,0.00016438,2]
[339105860,1727250647005,-189.263808,0.00016438,2]
[339105861,1727250647016,-500.0,0.00016438,2]
[339105862,1727250647026,-573.96,0.00016438,2]
[339105863,1727250647037,-500.0,0.00016438,2]
[339105864,1727250647046,-500.0,0.00016438,2]
[339105865,1727250647058,-500.0,0.00016438,2]
[339105866,1727250647068,-500.0,0.00016438,2]
[339105867,1727250647078,-1056.17,0.00016438,2]
[339105868,1727250647087,-500.0,0.00016438,2]
[339105869,1727250647096,-500.0,0.00016438,2]
[339105870,1727250647106,-520.031205,0.00016438,2]
[339105871,1727250647117,-520.031205,0.00016438,2]
[339105872,1727250647127,-1008.727896,0.00016438,2]
[339105873,1727250647137,-500.0,0.00016438,2]
[339105874,1727250647148,-544.34198388,0.00016438,2]
[339105875,1727250647160,-500.0,0.00016438,2]
[339105876,1727250647170,-1008.727896,0.00016438,2]
[339105877,1727250647179,-500.0,0.00016438,2]
[339105878,1727250647189,-500.0,0.00016438,2]
[339105879,1727250647201,-759.4,0.00016438,2]
[339105880,1727250647212,-500.0,0.00016438,2]
[339105881,1727250647223,-232.298534,0.00016438,2]
[339105882,1727250647234,-232.298534,0.00016438,2]
[339105883,1727250647245,-500.0,0.00016438,2]
[339105884,1727250647256,-1070.6,0.00016438,2]
[339105885,1727250647265,-687.52,0.00016438,2]
[339105886,1727250647275,-179.344684,0.00016438,2]
[339105887,1727250647284,-179.344684,0.00016438,2]
[339105888,1727250647293,-500.0,0.00016438,2]
[339105889,1727250647303,-500.0,0.00016438,2]
[339105890,1727250647312,-179.344684,0.00016438,2]
[339105891,1727250647323,-179.344684,0.00016438,2]
[339105892,1727250647333,-985.85,0.00016438,2]
[339105893,1727250647343,-500.0,0.00016438,2]
[339105894,1727250647354,-500.0,0.00016438,2]
[339105895,1727250647363,-500.0,0.00016438,2]
[339105896,1727250647373,-500.0,0.00016438,2]
[339105897,1727250647382,-500.0,0.00016438,2]
[339105898,1727250647391,-504.22083228,0.00016438,2]
[339105899,1727250647401,-785.05,0.00016438,2]
[339105900,1727250647411,-210.44512299,0.00016438,2]
[339105901,1727250647421,-1503.66,0.00016438,2]
[339105902,1727250647432,-500.0,0.00016438,2]
[339105903,1727250647442,-1000.0,0.00016438,2]
[339105904,1727250647457,-500.0,0.00016438,2]
[339105905,1727250647467,-500.0,0.00016438,2]
[339105906,1727250647477,-522.2567937,0.00016438,2]
[339105907,1727250647486,-151.0,0.00016438,2]
[339105908,1727250647497,-151.0,0.00016438,2]
[339105909,1727250647507,-1593.01,0.00016438,2]
[339105910,1727250647517,-180.826597,0.00016438,2]
[339105911,1727250647527,-180.826597,0.00016438,2]
[339105912,1727250647538,-500.0,0.00016438,2]
[339105913,1727250647547,-500.0,0.00016438,2]
[339105914,1727250647557,-180.826597,0.00016438,2]
[339105915,1727250647567,-500.0,0.00016438,2]
[339105916,1727250647576,-180.826597,0.00016438,2]
[339105917,1727250647585,-500.0,0.00016438,2]
[339105918,1727250647594,-500.0,0.00016438,2]
[339105919,1727250647603,-500.0,0.00016438,2]
[339105920,1727250647612,-500.0,0.00016438,2]
[339105921,1727250647622,-500.0,0.00016438,2]
[339105922,1727250647632,-500.0,0.00016438,2]
[339105923,1727250647643,-500.0,0.00016438,2]
[339105924,1727250647654,-854.35,0.00016438,2]
[339105925,1727250647665,-500.0,0.00016438,2]
[339105926,1727250647674,-500.0,0.00016438,2]
[339105927,1727250647683,-778.18,0.00016438,2]
[339105928,1727250647692,-500.0,0.00016438,2]
[339105929,1727250647703,-500.0,0.00016438,2]
[339105930,1727250647714,-500.0,0.00016438,2]
[339105931,1727250647725,-500.0,0.00016438,2]
[339105932,1727250647739,-500.0,0.00016438,2]
[339105933,1727250647750,-500.0,0.00016438,2]
[339105934,1727250647760,-851.78,0.00016438,2]
[339105935,1727250647769,-632.59,0.00016438,2]
[339105936,1727250647779,-758.37,0.00016438,2]
[339105937,1727250647790,-536.53,0.00016438,2]
[339105938,1727250647799,-500.0,0.00016438,2]
[339105939,1727250647813,-725.49,0.00016438,2]
[339105940,1727250647824,-150.0,0.00016438,2]
[339105941,1727250647834,-165.4069393,0.00016438,2]
[339105942,1727250647845,-500.0,0.00016438,2]
[339105943,1727250647856,-500.0,0.00016438,2]
[339105944,1727250647867,-500.0,0.00016438,2]
[339105945,1727250647876,-500.0,0.00016438,2]
[339105946,1727250647886,-500.0,0.00016438,2]
[339105947,1727250647895,-959.333631,0.00016438,2]
[339105948,1727250647904,-959.333631,0.00016438,2]
[339105949,1727250647913,-507.98221229,0.00016438,2]
[339105950,1727250647925,-500.0,0.00016438,2]
[339105951,1727250647938,-500.0,0.00016438,2]
[339105952,1727250647950,-500.0,0.00016438,2]
[339105953,1727250647960,-959.333631,0.00016438,2]
[339105954,1727250647970,-500.0,0.00016438,2]
[339105955,1727250647980,-959.333631,0.00016438,2]
[339105956,1727250647989,-502.29077958,0.00016438,2]
[339105957,1727250647998,-514.39,0.00016438,2]
[339105958,1727250648008,-1464.44,0.00016438,2]
[339105959,1727250648018,-263.73284,0.00016438,2]
[339105960,1727250648027,-263.73284,0.00016438,2]
[339105961,1727250648036,-500.0,0.00016438,2]
[339105962,1727250648046,-500.0,0.00016438,2]
[339105963,1727250648055,-263.73284,0.00016438,2]
[339105964,1727250648065,-263.73284,0.00016438,2]
[339105965,1727250648074,-500.0,0.00016438,2]
[339105966,1727250648084,-500.0,0.00016438,2]
[339105967,1727250648093,-511.75383957,0.00016438,2]
[339105968,1727250648103,-500.0,0.00016438,2]
[339105969,1727250648112,-525.01591877,0.00016438,2]
[339105970,1727250648122,-646.884321,0.00016438,2]
[339105971,1727250648132,-646.884321,0.00016438,2]
[339105972,1727250648142,-500.0,0.00016438,2]
[339105973,1727250648152,-500.0,0.00016438,2]
[339105974,1727250648163,-500.0,0.00016438,2]
[339105975,1727250648173,-500.0,0.00016438,2]
[339105976,1727250648182,-500.0,0.00016438,2]
[339105977,1727250648192,-500.0,0.00016438,2]
[339105978,1727250648202,-500.0,0.00016438,2]
[339105979,1727250648211,-433.36341795,0.00016438,2]
[339105980,1727250648222,-646.884321,0.00016438,2]
[339105981,1727250648232,-646.884321,0.00016438,2]
[339105982,1727250648242,-506.52175616,0.00016438,2]
[339105983,1727250648253,-500.0,0.00016438,2]
[339105984,1727250648262,-558.21470432,0.00016438,2]
[339105985,1727250648272,-500.0,0.00016438,2]
[339105986,1727250648281,-640.36,0.00016438,2]
[339105987,1727250648291,-500.0,0.00016438,2]
[339105988,1727250648301,-659.82,0.00016438,2]
[339105989,1727250648311,-500.0,0.00016438,2]
[339105990,1727250648321,-500.0,0.00016438,2]
[339105991,1727250648331,-500.0,0.00016438,2]
[339105992,1727250648340,-808.07,0.00016438,2]
[339105993,1727250648350,-501.71030824,0.00016438,2]
[339105994,1727250648360,-506.21,0.00016438,2]
[339105995,1727250648370,-659.13,0.00016438,2]
[339105996,1727250648380,-572.66,0.00016438,2]
[339105997,1727250648389,-680.82,0.00016438,2]
[339105998,1727250648399,-1349.999286,0.00016438,2]
[339105999,1727250648409,-500.0,0.00016438,2]
[339106000,1727250648418,-1349.999286,0.00016438,2]
[339106001,1727250648429,-250.819389,0.00016438,2]
[339106002,1727250648439,-250.819389,0.00016438,2]
[339106003,1727250648450,-533.5,0.00016438,2]
[339106004,1727250648461,-501.07083175,0.00016438,2]
[339106005,1727250648470,-500.0,0.00016438,2]
[339106006,1727250648480,-210.50314184,0.00016438,2]
[339106007,1727250648490,-1015.98,0.00016438,2]
[339106008,1727250648499,-1349.999286,0.00016438,2]
[339106009,1727250648509,-1349.999286,0.00016438,2]
[339106010,1727250648519,-500.0,0.00016438,2]
[339106011,1727250648530,-250.819389,0.00016438,2]
[339106012,1727250648540,-500.0,0.00016438,2]
[339106013,1727250648551,-250.819389,0.00016438,2]
[339106014,1727250648560,-500.0,0.00016438,2]
[339106015,1727250648569,-500.0,0.00016438,2]
[339106016,1727250648579,-500.0,0.00016438,2]
[339106017,1727250648588,-500.0,0.00016438,2]
[339106018,1727250648598,-500.0,0.00016438,2]
[339106019,1727250648607,-547.65287999,0.00016438,2]
[339106020,1727250648617,-500.0,0.00016438,2]
[339106021,1727250648628,-500.0,0.00016438,2]
[339106022,1727250648638,-533.06619255,0.00016438,2]
[339106023,1727250648647,-500.0,0.00016438,2]
[339106024,1727250648657,-4238.32,0.00016438,2]
[339106025,1727250648666,-511.06119485,0.00016438,2]
[339106026,1727250648676,-151.0,0.00016438,2]
[339106027,1727250648686,-151.0,0.00016438,2]
[339106028,1727250648696,-500.0,0.00016438,2]
[339106029,1727250648705,-1769.885029,0.00016438,2]
[339106030,1727250648715,-1769.885029,0.00016438,2]
[339106031,1727250648725,-3409.750242,0.00016438,2]
[339106032,1727250648739,-3409.750242,0.00016438,2]
[339106033,1727250648748,-500.87146376,0.00016438,2]
[339106034,1727250648758,-500.0,0.00016438,2]
[339106035,1727250648768,-500.0,0.00016438,2]
[339106036,1727250648778,-259.94,0.00016438,2]
[339106037,1727250648788,-832.6,0.00016438,2]
[339106038,1727250648799,-792.64,0.00016438,2]
[339106039,1727250648809,-1769.885029,0.00016438,2]
[339106040,1727250648819,-3409.750242,0.00016438,2]
[339106041,1727250648829,-1769.885029,0.00016438,2]
[339106042,1727250648838,-3409.750242,0.00016438,2]
[339106043,1727250648848,-500.0,0.00016438,2]
[339106044,1727250648857,-500.0,0.00016438,2]
[339106045,1727250648867,-500.0,0.00016438,2]
[339106046,1727250648877,-503.99155192,0.00016438,2]
[339106047,1727250648888,-500.0,0.00016438,2]
[339106048,1727250648897,-500.0,0.00016438,2]
[339106049,1727250648907,-500.0,0.00016438,2]
[339106050,1727250648916,-151.0,0.00016438,2]
[339106051,1727250648926,-500.0,0.00016438,2]
[339106052,1727250648936,-151.0,0.00016438,2]
[339106053,1727250648946,-500.0,0.00016438,2]
[339106054,1727250648956,-501.12979413,0.00016438,2]
[339106055,1727250648965,-882.36,0.00016438,2]
[339106056,1727250649020,-204.47624594,0.00016438,2]
[339106057,1727250649030,-500.0,0.00016438,2]
[339106058,1727250649039,-286.843106,0.00016438,2]
[339106059,1727250649050,-500.0,0.00016438,2]
[339106060,1727250649061,-517.61207423,0.00016438,2]
[339106061,1727250649071,-500.0,0.00016438,2]
[339106062,1727250649081,-500.85387924,0.00016438,2]
[339106063,1727250649090,-500.0,0.00016438,2]
[339106064,1727250649100,-500.0,0.00016438,2]
[339106065,1727250649110,-500.0,0.00016438,2]
[339106066,1727250649119,-500.0,0.00016438,2]
[339106067,1727250649130,-500.0,0.00016438,2]
[339106068,1727250649141,-637.71,0.00016438,2]
[339106069,1727250649151,-609.2959182,0.00016438,2]
[339106070,1727250649161,-500.0,0.00016438,2]
[339106071,1727250649171,-515.25356676,0.00016438,2]
[339106072,1727250649182,-500.0,0.00016438,2]
[339106073,1727250649191,-500.0,0.00016438,2]
[339106074,1727250649201,-594.76,0.00016438,2]
[339106075,1727250649211,-500.0,0.00016438,2]
[339106076,1727250649220,-1275.62,0.00016438,2]
[339106077,1727250649230,-500.0,0.00016438,2]
[339106078,1727250649240,-559.75,0.00016438,2]
[339106079,1727250649250,-500.0,0.00016438,2]
[339106080,1727250649260,-500.0,0.00016438,2]
[339106081,1727250649271,-500.0,0.00016438,2]
[339106082,1727250649280,-500.0,0.00016438,2]
[339106083,1727250649289,-500.0,0.00016438,2]
[339106084,1727250649298,-320.89483328,0.00016438,2]
[339106085,1727250649308,-500.0,0.00016438,2]
[339106086,1727250649318,-514.51284027,0.00016438,2]
[339106087,1727250649327,-500.0,0.00016438,2]
[339106088,1727250649337,-500.0,0.00016438,2]
[339106089,1727250649346,-263.82765291,0.00016438,2]
[339106090,1727250649357,-500.0,0.00016438,2]
[339106091,1727250649366,-500.0,0.00016438,2]
[339106092,1727250649376,-500.0,0.00016438,2]
[339106093,1727250649385,-500.0,0.00016438,2]
[339106094,1727250649395,-500.0,0.00016438,2]
[339106095,1727250649405,-500.0,0.00016438,2]
[339106096,1727250649416,-510.32515356,0.00016438,2]
[339106097,1727250649426,-500.0,0.00016438,2]
[339106098,1727250649435,-509.30670106,0.00016438,2]
[339106099,1727250649447,-500.0,0.00016438,2]
[339106100,1727250649456,-500.0,0.00016438,2]
[339106101,1727250649465,-506.90914902,0.00016438,2]
[339106102,1727250649474,-500.0,0.00016438,2]
[339106103,1727250649484,-500.0,0.00016438,2]
[339106104,1727250649494,-500.0,0.00016438,2]
[339106105,1727250649503,-1158.89,0.00016438,2]
[339106106,1727250649512,-500.0,0.00016438,2]
[339106107,1727250649522,-500.0,0.00016438,2]
[339106108,1727250649531,-608.3,0.00016438,2]
[339106109,1727250649541,-397.25881911,0.00016438,2]
[339106110,1727250649550,-500.0,0.00016438,2]
[339106111,1727250649559,-509.40183838,0.00016438,2]
[339106112,1727250649569,-464.19539959,0.00016438,2]
[339106113,1727250649578,-506.65179589,0.00016438,2]
[339106114,1727250649587,-510.5055585,0.00016438,2]
[339106115,1727250649596,-500.3787007,0.00016438,2]
[339106116,1727250649609,-500.0,0.00016438,2]
[339106117,1727250649620,-500.0,0.00016438,2]
[339106118,1727250649629,-500.0,0.00016438,2]
[339106119,1727250649639,-500.0,0.00016438,2]
[339106120,1727250649650,-542.13,0.00016438,2]
[339106121,1727250649660,-500.0,0.00016438,2]
[339106122,1727250649670,-500.0,0.00016438,2]
[339106123,1727250649680,-500.0,0.00016438,2]
[339106124,1727250649689,-500.0,0.00016438,2]
[339106125,1727250649700,-500.0,0.00016438,2]
[339106126,1727250649709,-824.28,0.00016438,2]
[339106127,1727250649719,-500.0,0.00016438,2]
[339106128,1727250649728,-500.0,0.00016438,2]
[339106129,1727250649742,-500.0,0.00016438,2]
[339106130,1727250649752,-500.0,0.00016438,2]
[339106131,1727250649761,-500.0,0.00016438,2]
[339106132,1727250649771,-1467.92,0.00016438,2]
[339106133,1727250649782,-500.0,0.00016438,2]
[339106134,1727250649791,-500.0,0.00016438,2]
[339106135,1727250649800,-500.0,0.00016438,2]
[339106136,1727250649810,-500.0,0.00016438,2]
[339106137,1727250649822,-500.0,0.00016438,2]
[339106138,1727250649832,-500.0,0.00016438,2]
[339106139,1727250649841,-621.19,0.00016438,2]
[339106140,1727250649851,-500.0,0.00016438,2]
[339106141,1727250649860,-500.0,0.00016438,2]
[339106142,1727250649869,-500.0,0.00016438,2]
[339106143,1727250649878,-500.0,0.00016438,2]
[339106144,1727250649888,-500.0,0.00016438,2]
[339106145,1727250649897,-500.0,0.00016438,2]
[339106146,1727250649906,-295.56372211,0.00016438,2]
[339106147,1727250649915,-500.0,0.00016438,2]
[339106148,1727250649924,-292.40307574,0.00016438,2]
[339106149,1727250649933,-500.0,0.00016438,2]
[339106150,1727250649943,-542.91,0.00016438,2]
[339106151,1727250649953,-500.0,0.00016438,2]
[339106152,1727250649963,-500.0,0.00016438,2]
[339106153,1727250649972,-500.0,0.00016438,2]
[339106154,1727250649982,-500.0,0.00016438,2]
[339106155,1727250649991,-500.0,0.00016438,2]
[339106156,1727250650001,-747.64,0.00016438,2]
[339106157,1727250650010,-500.0,0.00016438,2]
[339106158,1727250650020,-500.0,0.00016438,2]
[339106159,1727250650029,-500.0,0.00016438,2]
[339106160,1727250650039,-500.0,0.00016438,2]
[339106161,1727250650049,-500.0,0.00016438,2]
[339106162,1727250650062,-500.0,0.00016438,2]
[339106163,1727250650073,-500.0,0.00016438,2]
[339106164,1727250650082,-500.0,0.00016438,2]
[339106165,1727250650092,-500.0,0.00016438,2]
[339106166,1727250650102,-500.0,0.00016438,2]
[339106167,1727250650111,-500.0,0.00016438,2]
[339106168,1727250650121,-500.0,0.00016438,2]
[339106169,1727250650130,-500.0,0.00016438,2]
[339106170,1727250650140,-500.0,0.00016438,2]
[339106171,1727250650149,-905.05,0.00016438,2]
[339106172,1727250650160,-500.0,0.00016438,2]
[339106173,1727250650169,-500.0,0.00016438,2]
[339106174,1727250650178,-500.0,0.00016438,2]
[339106175,1727250650187,-500.0,0.00016438,2]
[339106176,1727250650197,-500.0,0.00016438,2]
[339106177,1727250650206,-500.0,0.00016438,2]
[339106178,1727250650215,-500.0,0.00016438,2]
[339106179,1727250650225,-1943.64,0.00016438,2]
[339106180,1727250650236,-500.0,0.00016438,2]
[339106181,1727250650246,-500.0,0.00016438,2]
[339106182,1727250650256,-515.6,0.00016438,2]
[339106183,1727250650268,-500.0,0.00016438,2]
[339106184,1727250650278,-500.0,0.00016438,2]
[339106185,1727250650287,-500.0,0.00016438,2]
[339106186,1727250650297,-616.3711765,0.00016438,2]
[339106187,1727250650306,-558.4039356,0.00016438,2]
[339106188,1727250650317,-623.12,0.00016438,2]
[339106189,1727250650328,-500.0,0.00016438,2]
[339106190,1727250650337,-587.28,0.00016438,2]
[339106191,1727250650348,-581.74666391,0.00016438,2]
[339106192,1727250650358,-500.0,0.00016438,2]
[339106193,1727250650369,-500.0,0.00016438,2]
[339106194,1727250650378,-500.0,0.00016438,2]
[339106195,1727250650387,-500.0,0.00016438,2]
[339106196,1727250650398,-507.21,0.00016438,2]
[339106197,1727250650408,-500.0,0.00016438,2]
[339106198,1727250650417,-500.0,0.00016438,2]
[339106199,1727250650427,-286.9279382,0.00016438,2]
[339106200,1727250650436,-501.33545447,0.00016438,2]
[339106201,1727250650447,-578.78,0.00016438,2]
[339106202,1727250650456,-500.0,0.00016438,2]
[339106203,1727250650466,-500.0,0.00016438,2]
[339106204,1727250650476,-555.02831218,0.00016438,2]
[339106205,1727250650485,-500.0,0.00016438,2]
[339106206,1727250650495,-500.0,0.00016438,2]
[339106207,1727250650505,-504.73675386,0.00016438,2]
[339106208,1727250650515,-500.0,0.00016438,2]
[339106209,1727250650524,-500.0,0.00016438,2]
[339106210,1727250650533,-500.0,0.00016438,2]
[339106211,1727250650542,-500.0,0.00016438,2]
[339106212,1727250650552,-500.0,0.00016438,2]
[339106213,1727250650562,-500.0,0.00016438,2]
[339106214,1727250650573,-500.0,0.00016438,2]
[339106215,1727250650582,-772.19,0.00016438,2]
[339106216,1727250650591,-500.0,0.00016438,2]
[339106217,1727250650600,-500.0,0.00016438,2]
[339106218,1727250650609,-500.0,0.00016438,2]
[339106219,1727250650618,-500.0,0.00016438,2]
[339106220,1727250650628,-500.0,0.00016438,2]
[339106221,1727250650637,-500.0,0.00016438,2]
[339106222,1727250650646,-671.03,0.00016438,2]
[339106223,1727250650655,-563.23,0.00016438,2]
[339106224,1727250650664,-500.0,0.00016438,2]
[339106225,1727250650673,-500.0,0.00016438,2]
[339106226,1727250650682,-519.75877616,0.00016438,2]
[339106227,1727250650692,-500.0,0.00016438,2]
[339106228,1727250650706,-500.0,0.00016438,2]
[339106229,1727250650716,-541.22,0.00016438,2]
[339106230,1727250650725,-500.0,0.00016438,2]
[339106231,1727250650739,-32458.59,0.00016438,2]
[339106232,1727250650748,-500.0,0.00016438,2]
[339106233,1727250650757,-500.0,0.00016438,2]
[339106234,1727250650767,-500.0,0.00016438,2]
[339106235,1727250650776,-500.0,0.00016438,2]
[339106236,1727250650785,-528.58686142,0.00016438,2]
[339106237,1727250650795,-500.0,0.00016438,2]
[339106238,1727250650804,-503.05981581,0.00016438,2]
[339106239,1727250650815,-629.03444793,0.00016438,2]
[339106240,1727250650824,-503.38657237,0.00016438,2]
[339106241,1727250650833,-4604.52,0.00016438,2]
[339106242,1727250650843,-615.46,0.00016438,2]
[339106243,1727250650852,-500.0,0.00016438,2]
[339106244,1727250650861,-500.0,0.00016438,2]
[339106245,1727250650870,-500.0,0.00016438,2]
[339106246,1727250650879,-500.0,0.00016438,2]
[339106247,1727250650888,-445.07096973,0.00016438,2]
[339106248,1727250650897,-500.0,0.00016438,2]
[339106249,1727250650907,-500.0,0.00016438,2]
[339106250,1727250650917,-500.0,0.00016438,2]
[339106251,1727250650926,-500.0,0.00016438,2]
[339106252,1727250650936,-505.50464618,0.00016438,2]
[339106253,1727250650945,-500.0,0.00016438,2]
[339106254,1727250650956,-151.0,0.00016438,2]
[339106255,1727250650965,-310.887622,0.00016438,2]
[339106256,1727250650975,-310.887622,0.00016438,2]
[339106257,1727250650984,-310.887622,0.00016438,2]
[339106258,1727250650993,-310.887622,0.00016438,2]
[339106259,1727250651004,-153.0,0.00016438,2]
[339106260,1727250651013,-153.0,0.00016438,2]
[339106261,1727250651023,-153.0,0.00016438,2]
[339106262,1727250651032,-154.532,0.00016446,2]
[339106263,1727250651042,-525.0,0.00016446,2]
[339106264,1727250651051,-2083.001365,0.0001645,2]
[339106265,1727250651061,-921.8087397,0.0001645,2]
[339106266,1727250651070,-1000.0,0.00016453,2]
[339106267,1727250651080,-1000.0,0.00016456,2]
[339106268,1727250651089,-600.49251769,0.00016473,2]
[339106269,1727250651098,-500.0,0.00016473,2]
[339106270,1727250651108,-326.74692344,0.00016473,2]
[339106271,1727250651117,-500.0,0.00016473,2]
[339106272,1727250651128,-500.0,0.00016473,2]
[339106273,1727250651137,-500.0,0.00016473,2]
[339106274,1727250651147,-500.54961617,0.00016473,2]
[339106275,1727250651157,-500.0,0.00016473,2]
[339106276,1727250651166,-151.0,0.00016496,2]
[339106277,1727250651175,-152.756338,0.00016496,2]
[339106278,1727250651184,-500.0,0.00016545,2]
[339106279,1727250651193,-500.0,0.00016545,2]
[339106280,1727250651204,-500.0,0.00016545,2]
[339106281,1727250651213,-500.0,0.00016545,2]
[339106282,1727250651222,-500.0,0.00016545,2]
[339106283,1727250651232,-500.0,0.00016545,2]
[339106284,1727250651242,-500.0,0.00016545,2]
[339106285,1727250651252,-500.0,0.00016545,2]
[339106286,1727250651261,-500.0,0.00016545,2]
[339106287,1727250651271,-500.0,0.00016545,2]
[339106288,1727250651280,-452.9518626,0.00016545,2]
[339106289,1727250651289,-1000.0,0.00016562,2]
[339106290,1727250651299,-1000.0,0.00016569,2]
[339106291,1727250651308,-1000.0,0.0001658,2]
[339106292,1727250651317,-1000.0,0.00016584,2]
[339106293,1727250651327,-153.0,0.00016587,2]
[339106294,1727250651336,-153.0,0.00016587,2]
[339106295,1727250651345,-151.0,0.00016588,2]
[339106296,1727250651356,-3000.0,0.000166,2]
[339106297,1727250651367,-1000.0,0.00016605,2]
[339106298,1727250651376,-3000.0,0.0001661,2]
[339106299,1727250651385,-1000.0,0.00016619,2]
[339106300,1727250651394,-238.07704347,0.0001662,2]
[339106301,1727250651748,-27.95774759,0.00015912,2]
[339106302,1727250651848,-195.03593872,0.00015912,2]
[339106303,1727250651858,-222.99368631,0.00016328,2]
[339106304,1727250651867,-500.0,0.00016438,2]
[339106305,1727250651877,-500.0,0.00016438,2]
[339106306,1727250651887,-500.0,0.00016438,2]
[339106307,1727250651896,-392.44710541,0.00016438,2]
[339106308,1727250651906,-500.0,0.00016438,2]
[339106309,1727250651915,-504.86411272,0.00016438,2]
[339106310,1727250651925,-500.0,0.00016438,2]
[339106311,1727250651934,-509.68535942,0.00016438,2]
[339106312,1727250651944,-2051.8116623,0.0001662,2]
[339106327,1727250720542,175.04,0.00010959,2]
[339106328,1727250731012,875.24,0.00010959,2]
[339106336,1727250988950,190.5285015,0.0001375,2]
[339106337,1727251098023,250.0,0.00013615,2]
[339106338,1727251120799,3000.0,0.00013673,2]
[339106339,1727251184284,436.052504,0.00013699,2]
[339106340,1727251189662,250.0,0.00013515,2]
[339106341,1727251189872,250.0,0.00013552,2]
[339106342,1727251190084,250.0,0.00013589,2]
[339106343,1727251190302,250.0,0.00013626,2]
[339106344,1727251190510,250.0,0.00013663,2]
[339106345,1727251190714,250.0,0.000137,2]
[339106346,1727251190955,250.0,0.00013737,2]
[339106347,1727251191148,250.0,0.00013774,2]
[339106348,1727251191358,250.0,0.00013811,2]
[339106349,1727251191587,250.0,0.00013848,2]
[339106350,1727251192047,250.0,0.00013885,2]
[339106351,1727251192233,250.0,0.00013922,2]
[339106352,1727251192449,250.0,0.00013959,2]
[339106353,1727251192680,250.0,0.00013996,2]
[339106354,1727251192902,250.0,0.00014033,2]
[339106355,1727251193115,250.0,0.00014071,2]
[339106356,1727251204000,500.0,0.0001,2]
[339106364,1727251329010,3352.8570727,0.00013699,2]
[339106367,1727251496077,3805.828273,0.00013699,2]
[339106368,1727251601380,24900.0,0.00013287,2]
[339106369,1727251757136,-250.0,0.00014108,2]
[339106370,1727251757161,-6.79960891,0.00014145,2]
[339106371,1727251763355,168.020412,0.00013822,2]
[339106372,1727251763563,168.020412,0.00013902,2]
[339106373,1727251764032,168.020412,0.00013982,2]
[339106374,1727251764256,168.020412,0.00014062,2]
[339106375,1727251788511,218.026252,0.00013699,2]
[339106415,1727251832512,-168.020412,0.00014142,2]
[339106417,1727251832522,-168.020412,0.00014222,2]
[339106419,1727251832531,-227.65869206,0.000143,2]
[339106421,1727251832541,-168.020412,0.00014302,2]
[339106423,1727251832552,-168.020412,0.00014382,2]
[339106426,1727251832565,-3805.828273,0.00014384,2]
[339106428,1727251832574,-117.11067645,0.000144,2]
[339106451,1727251838667,-2955.780642,0.00014235,2]
[339106452,1727251838678,-93.96393588,0.000144,2]